[Event "*** Titled Tuesday Blitz"]
[Site "Chess.com"]
[Date "2019.09.03"]
[Round "6"]
[White "Iyael"]
[Black "Everyfishknows"]
[Result "1/2-1/2"]
[WhiteElo "2043"]
[BlackElo "2260"]
[TimeControl "180+2"]
[EndTime "16:17:55 PDT"]
[Termination "Game drawn by repetition"]

1. e4 {[%clk 0:03:01.9]} 1... e5 {[%clk 0:03:00]} 2. Nf3 {[%clk 0:03:02.1]} 2...
Nc6 {[%clk 0:03:00.7]} 3. Bb5 {[%clk 0:03:01.9]} 3... Nf6 {[%clk 0:03:01.1]} 4.
O-O {[%clk 0:02:57.6]} 4... Nxe4 {[%clk 0:03:01.1]} 5. Re1 {[%clk 0:02:54.5]}
5... Nd6 {[%clk 0:03:00.6]} 6. Nxe5 {[%clk 0:02:55.2]} 6... Nxe5 {[%clk
0:02:58.8]} 7. Rxe5+ {[%clk 0:02:54.8]} 7... Be7 {[%clk 0:02:56.6]} 8. Bf1
{[%clk 0:02:55.5]} 8... O-O {[%clk 0:02:56.7]} 9. d4 {[%clk 0:02:55.6]} 9... Bf6
{[%clk 0:02:56.9]} 10. Re1 {[%clk 0:02:56]} 10... Nf5 {[%clk 0:02:57.4]} 11. c3
{[%clk 0:02:55.6]} 11... d5 {[%clk 0:02:57.9]} 12. Bf4 {[%clk 0:02:53.6]} 12...
c6 {[%clk 0:02:54.2]} 13. Nd2 {[%clk 0:02:53.5]} 13... Nd6 {[%clk 0:02:54.4]}
14. Bd3 {[%clk 0:02:51.4]} 14... Re8 {[%clk 0:02:30.3]} 15. Qf3 {[%clk
0:02:50.9]} 15... Be6 {[%clk 0:02:21]} 16. h3 {[%clk 0:02:45.6]} 16... Qd7
{[%clk 0:02:17]} 17. g4 {[%clk 0:02:45.4]} 17... g6 {[%clk 0:01:24.8]} 18. Re2
{[%clk 0:02:36.8]} 18... Bg7 {[%clk 0:01:24]} 19. Rae1 {[%clk 0:02:36.3]} 19...
Nc4 {[%clk 0:01:14.3]} 20. b3 {[%clk 0:02:23.6]} 20... Nxd2 {[%clk 0:01:14.5]}
21. Rxd2 {[%clk 0:02:15.9]} 21... f5 {[%clk 0:01:10.9]} 22. g5 {[%clk
0:02:14.3]} 22... Bf7 {[%clk 0:01:09.9]} 23. Rde2 {[%clk 0:02:15.2]} 23... Rxe2
{[%clk 0:01:10.6]} 24. Rxe2 {[%clk 0:02:16.2]} 24... Re8 {[%clk 0:01:11.7]} 25.
h4 {[%clk 0:02:12]} 25... Rxe2 {[%clk 0:01:11]} 26. Qxe2 {[%clk 0:02:13]} 26...
Qe6 {[%clk 0:01:12.3]} 27. Qxe6 {[%clk 0:02:13.4]} 27... Bxe6 {[%clk 0:01:14.2]}
28. Kf1 {[%clk 0:02:14.1]} 28... Kf7 {[%clk 0:01:13.2]} 29. Ke2 {[%clk
0:02:14.8]} 29... b6 {[%clk 0:01:13.5]} 30. a4 {[%clk 0:02:13.3]} 30... c5
{[%clk 0:01:14]} 31. Ke3 {[%clk 0:02:07.8]} 31... Ke7 {[%clk 0:01:10.9]} 32. Bb8
{[%clk 0:02:07.6]} 32... c4 {[%clk 0:01:05.4]} 33. Bc2 {[%clk 0:01:59]} 33... a6
{[%clk 0:01:04.7]} 34. Ba7 {[%clk 0:01:58.5]} 34... b5 {[%clk 0:01:06]} 35. Bc5+
{[%clk 0:01:58.6]} 35... Kd7 {[%clk 0:01:06.6]} 36. axb5 {[%clk 0:01:59.1]}
36... axb5 {[%clk 0:01:07.4]} 37. bxc4 {[%clk 0:02:00.2]} 37... bxc4 {[%clk
0:01:00.2]} 38. Ba4+ {[%clk 0:02:00.1]} 38... Kc7 {[%clk 0:00:59.6]} 39. Be8
{[%clk 0:02:00.1]} 39... Kd8 {[%clk 0:00:55.2]} 40. Bc6 {[%clk 0:02:00.7]} 40...
Kc7 {[%clk 0:00:53.3]} 41. Be8 {[%clk 0:01:57.7]} 41... Kd8 {[%clk 0:00:53.8]}
42. Bc6 {[%clk 0:01:57.1]} 42... Kc7 {[%clk 0:00:54.7]} 43. Be8 {[%clk
0:01:52.9]} 1/2-1/2

[Event "*** Titled Tuesday Blitz"]
[Site "Chess.com"]
[Date "2019.09.03"]
[Round "6"]
[White "StephenDedalus83"]
[Black "Vuks91"]
[Result "1-0"]
[WhiteElo "2834"]
[BlackElo "2605"]
[TimeControl "180+2"]
[EndTime "16:17:56 PDT"]
[Termination "StephenDedalus83 won on time"]

1. g3 {[%clk 0:02:57.8]} 1... e5 {[%clk 0:02:58.6]} 2. Bg2 {[%clk 0:02:58.5]}
2... Nc6 {[%clk 0:02:51.4]} 3. d3 {[%clk 0:02:59]} 3... Bc5 {[%clk 0:02:49.4]}
4. a3 {[%clk 0:02:58]} 4... a6 {[%clk 0:02:46.3]} 5. b4 {[%clk 0:02:55.9]} 5...
Ba7 {[%clk 0:02:47.1]} 6. e3 {[%clk 0:02:53.7]} 6... d6 {[%clk 0:02:45.3]} 7. c4
{[%clk 0:02:53.7]} 7... h5 {[%clk 0:02:39.4]} 8. h3 {[%clk 0:02:52.9]} 8... Be6
{[%clk 0:02:20.6]} 9. Nc3 {[%clk 0:02:53.2]} 9... Qd7 {[%clk 0:02:14.1]} 10.
Nge2 {[%clk 0:02:52.3]} 10... Nd8 {[%clk 0:02:10.4]} 11. Qb3 {[%clk 0:02:39.4]}
11... f5 {[%clk 0:01:34.9]} 12. d4 {[%clk 0:02:32.8]} 12... h4 {[%clk
0:01:29.6]} 13. Bb2 {[%clk 0:02:21.9]} 13... Nf6 {[%clk 0:01:19.5]} 14. O-O-O
{[%clk 0:02:17.9]} 14... e4 {[%clk 0:01:17.8]} 15. d5 {[%clk 0:02:12.9]} 15...
Bg8 {[%clk 0:01:03.7]} 16. g4 {[%clk 0:02:13.7]} 16... Bh7 {[%clk 0:00:49.3]}
17. Nf4 {[%clk 0:02:06.1]} 17... fxg4 {[%clk 0:00:18.5]} 18. hxg4 {[%clk
0:02:06.6]} 18... Qxg4 {[%clk 0:00:14.2]} 19. Rdg1 {[%clk 0:02:01.4]} 19... Qd7
{[%clk 0:00:13.6]} 20. Bh3 {[%clk 0:01:59.1]} 20... Qe7 {[%clk 0:00:09.6]} 21.
Nce2 {[%clk 0:01:51.7]} 21... O-O {[%clk 0:00:07.1]} 22. Be6+ {[%clk 0:01:47.6]}
22... Nxe6 {[%clk 0:00:05.5]} 23. Nxe6 {[%clk 0:01:48.4]} 23... Rf7 {[%clk
0:00:06.1]} 24. Rxh4 {[%clk 0:01:49]} 24... Nxd5 {[%clk 0:00:05.1]} 25. Ng5
{[%clk 0:01:35.1]} 1-0

[Event "*** Titled Tuesday Blitz"]
[Site "Chess.com"]
[Date "2019.09.03"]
[Round "6"]
[White "Alexandercs432"]
[Black "Ar4uha"]
[Result "0-1"]
[WhiteElo "2037"]
[BlackElo "2513"]
[TimeControl "180+2"]
[EndTime "16:18:08 PDT"]
[Termination "Ar4uha won by checkmate"]

1. e4 {[%clk 0:03:01.8]} 1... d5 {[%clk 0:03:01]} 2. exd5 {[%clk 0:03:02.6]}
2... Nf6 {[%clk 0:03:02.6]} 3. Bb5+ {[%clk 0:03:02.8]} 3... Bd7 {[%clk
0:03:01.9]} 4. Be2 {[%clk 0:03:03.9]} 4... Nxd5 {[%clk 0:03:02]} 5. Nf3 {[%clk
0:03:05]} 5... Nc6 {[%clk 0:03:01.6]} 6. d4 {[%clk 0:03:05.7]} 6... Bf5 {[%clk
0:03:02.1]} 7. O-O {[%clk 0:03:04]} 7... e6 {[%clk 0:03:03]} 8. c4 {[%clk
0:03:04.6]} 8... Ndb4 {[%clk 0:02:59.5]} 9. Na3 {[%clk 0:03:01.5]} 9... Be7
{[%clk 0:02:57.8]} 10. Be3 {[%clk 0:02:59.3]} 10... O-O {[%clk 0:02:58.4]} 11.
Nb5 {[%clk 0:02:25.9]} 11... a6 {[%clk 0:02:50.4]} 12. Nc3 {[%clk 0:02:25.5]}
12... Bf6 {[%clk 0:02:51.3]} 13. Rc1 {[%clk 0:01:58]} 13... a5 {[%clk
0:02:39.4]} 14. a3 {[%clk 0:01:58.4]} 14... Na6 {[%clk 0:02:40.8]} 15. Qd2
{[%clk 0:01:49.6]} 15... Qd7 {[%clk 0:02:41]} 16. Rfd1 {[%clk 0:01:46.2]} 16...
Rfd8 {[%clk 0:02:41.7]} 17. h3 {[%clk 0:01:37.5]} 17... h6 {[%clk 0:02:41.3]}
18. Qe1 {[%clk 0:01:08.5]} 18... Qe7 {[%clk 0:02:41.9]} 19. Bd3 {[%clk
0:00:51.4]} 19... Bxd3 {[%clk 0:02:40.4]} 20. Rxd3 {[%clk 0:00:53.3]} 20... Nc5
{[%clk 0:02:41.8]} 21. Rdd1 {[%clk 0:00:45.4]} 21... Nb3 {[%clk 0:02:38.6]} 22.
Rb1 {[%clk 0:00:44.8]} 22... Nbxd4 {[%clk 0:02:39.7]} 23. Nxd4 {[%clk
0:00:45.9]} 23... Nxd4 {[%clk 0:02:41.6]} 24. Bxd4 {[%clk 0:00:45]} 24... Bxd4
{[%clk 0:02:43.5]} 25. Nd5 {[%clk 0:00:41.4]} 25... Qc5 {[%clk 0:02:31.2]} 26.
Qe4 {[%clk 0:00:14.1]} 26... Bxf2+ {[%clk 0:02:30.5]} 27. Kh1 {[%clk 0:00:05.5]}
27... exd5 {[%clk 0:02:32.4]} 28. Qf3 {[%clk 0:00:04.3]} 28... dxc4 {[%clk
0:02:31.2]} 29. Rf1 {[%clk 0:00:04.8]} 29... Rd2 {[%clk 0:02:32.8]} 30. Rbc1
{[%clk 0:00:02.8]} 30... Rad8 {[%clk 0:02:30.9]} 31. b4 {[%clk 0:00:02.2]} 31...
axb4 {[%clk 0:02:29.4]} 32. axb4 {[%clk 0:00:04.1]} 32... Qe3 {[%clk 0:02:27.3]}
33. Qf5 {[%clk 0:00:03.4]} 33... c3 {[%clk 0:02:24.9]} 34. b5 {[%clk 0:00:04.2]}
34... b6 {[%clk 0:02:24.2]} 35. Ra1 {[%clk 0:00:04.5]} 35... c2 {[%clk
0:02:24.7]} 36. Ra3 {[%clk 0:00:03]} 36... Rd1 {[%clk 0:02:22.5]} 37. Rxe3
{[%clk 0:00:03.2]} 37... Rxf1+ {[%clk 0:02:23.7]} 38. Kh2 {[%clk 0:00:04.2]}
38... Rh1+ {[%clk 0:02:25.6]} 39. Kxh1 {[%clk 0:00:03.9]} 39... c1=Q+ {[%clk
0:02:27.5]} 40. Kh2 {[%clk 0:00:05]} 40... Qg1# {[%clk 0:02:29]} 0-1

[Event "*** Titled Tuesday Blitz"]
[Site "Chess.com"]
[Date "2019.09.03"]
[Round "6"]
[White "MasterKroket"]
[Black "ahkashefi2800"]
[Result "0-1"]
[WhiteElo "2412"]
[BlackElo "2119"]
[TimeControl "180+2"]
[EndTime "16:18:13 PDT"]
[Termination "ahkashefi2800 won by resignation"]

1. d4 {[%clk 0:03:01.9]} 1... c6 {[%clk 0:03:01.9]} 2. c4 {[%clk 0:03:02.8]}
2... d6 {[%clk 0:03:03.8]} 3. Nc3 {[%clk 0:03:03.5]} 3... g6 {[%clk 0:03:05]} 4.
e4 {[%clk 0:03:04.4]} 4... Bg7 {[%clk 0:03:06.9]} 5. Nf3 {[%clk 0:03:04.3]} 5...
e5 {[%clk 0:03:04.7]} 6. h3 {[%clk 0:02:57.1]} 6... Ne7 {[%clk 0:03:00.7]} 7.
Bg5 {[%clk 0:02:39.8]} 7... h6 {[%clk 0:02:55]} 8. Be3 {[%clk 0:02:39.3]} 8...
Be6 {[%clk 0:02:53.2]} 9. d5 {[%clk 0:02:37.4]} 9... cxd5 {[%clk 0:02:53]} 10.
cxd5 {[%clk 0:02:35.1]} 10... Bc8 {[%clk 0:02:51.2]} 11. Qd2 {[%clk 0:02:26.7]}
11... g5 {[%clk 0:02:50.8]} 12. Bb5+ {[%clk 0:02:21.8]} 12... Bd7 {[%clk
0:02:50.3]} 13. Bd3 {[%clk 0:02:19.7]} 13... Ng6 {[%clk 0:02:50.2]} 14. g3
{[%clk 0:02:18.6]} 14... a6 {[%clk 0:02:51.4]} 15. h4 {[%clk 0:02:14.9]} 15...
gxh4 {[%clk 0:02:49.9]} 16. Nxh4 {[%clk 0:02:15.9]} 16... Bg4 {[%clk 0:02:44.7]}
17. Nxg6 {[%clk 0:02:06.2]} 17... fxg6 {[%clk 0:02:46.6]} 18. Bxh6 {[%clk
0:02:06.8]} 18... Qf6 {[%clk 0:02:46.6]} 19. Rh4 {[%clk 0:02:04.5]} 19... Bxh6
{[%clk 0:02:23.6]} 20. Rxh6 {[%clk 0:02:04.7]} 20... Nd7 {[%clk 0:02:24]} 21.
Be2 {[%clk 0:01:29.8]} 21... Bxe2 {[%clk 0:02:16.1]} 22. Rxh8+ {[%clk
0:01:22.7]} 22... Qxh8 {[%clk 0:02:16.2]} 23. Qxe2 {[%clk 0:01:24.4]} 23... Qh6
{[%clk 0:02:11.2]} 24. f4 {[%clk 0:01:14.8]} 24... exf4 {[%clk 0:02:09.5]} 25.
Qf3 {[%clk 0:00:57.8]} 25... Ne5 {[%clk 0:02:08.3]} 26. Qf1 {[%clk 0:00:26.9]}
26... f3 {[%clk 0:02:02.3]} 27. Kd1 {[%clk 0:00:26.2]} 27... Rc8 {[%clk
0:02:01.2]} 28. Kc2 {[%clk 0:00:26.9]} 28... Qh2+ {[%clk 0:01:55.9]} 29. Kb3
{[%clk 0:00:27.4]} 29... Nc4 {[%clk 0:01:54.3]} 30. Qc1 {[%clk 0:00:19.1]} 30...
f2 {[%clk 0:01:46.1]} 31. Rb1 {[%clk 0:00:19.2]} 31... f1=Q {[%clk 0:01:45.3]}
32. Qxf1 {[%clk 0:00:15.1]} 32... Nd2+ {[%clk 0:01:46.2]} 33. Ka3 {[%clk
0:00:16.4]} 33... Nxf1 {[%clk 0:01:48.1]} 34. Rxf1 {[%clk 0:00:18.2]} 34...
Rxc3+ {[%clk 0:01:48]} 35. bxc3 {[%clk 0:00:18.2]} 35... Qxg3 {[%clk 0:01:49.4]}
36. Rc1 {[%clk 0:00:19.4]} 36... Qe3 {[%clk 0:01:49.6]} 0-1

[Event "*** Titled Tuesday Blitz"]
[Site "Chess.com"]
[Date "2019.09.03"]
[Round "6"]
[White "GCamachoMartinez"]
[Black "Vasily_Papin"]
[Result "0-1"]
[WhiteElo "2426"]
[BlackElo "2608"]
[TimeControl "180+2"]
[EndTime "16:18:14 PDT"]
[Termination "Vasily_Papin won by resignation"]

1. d4 {[%clk 0:03:01.9]} 1... Nf6 {[%clk 0:02:58.4]} 2. c4 {[%clk 0:03:02.8]}
2... e6 {[%clk 0:02:59.3]} 3. Nf3 {[%clk 0:03:02.5]} 3... b6 {[%clk 0:02:59.6]}
4. g3 {[%clk 0:03:03.2]} 4... Ba6 {[%clk 0:03:00.7]} 5. b3 {[%clk 0:03:03.9]}
5... b5 {[%clk 0:03:02]} 6. cxb5 {[%clk 0:02:58.6]} 6... Bxb5 {[%clk 0:03:03.9]}
7. Bg2 {[%clk 0:02:59.2]} 7... Bb4+ {[%clk 0:03:02.1]} 8. Bd2 {[%clk 0:02:57.9]}
8... a5 {[%clk 0:03:02.8]} 9. O-O {[%clk 0:02:57.9]} 9... Bc6 {[%clk 0:03:02.4]}
10. Ne5 {[%clk 0:02:52.5]} 10... Bxg2 {[%clk 0:03:02.6]} 11. Kxg2 {[%clk
0:02:54.4]} 11... O-O {[%clk 0:03:01.1]} 12. Nd3 {[%clk 0:02:54.5]} 12... Be7
{[%clk 0:02:58.6]} 13. Nc3 {[%clk 0:02:52.8]} 13... Nc6 {[%clk 0:02:59.1]} 14.
Be3 {[%clk 0:02:33]} 14... Qb8 {[%clk 0:02:56.5]} 15. f3 {[%clk 0:02:26.7]}
15... Nb4 {[%clk 0:02:57]} 16. Nf4 {[%clk 0:02:17.8]} 16... Qb7 {[%clk
0:02:56.5]} 17. Bg1 {[%clk 0:02:15.4]} 17... Rfc8 {[%clk 0:02:57.4]} 18. Rc1
{[%clk 0:02:12.7]} 18... c5 {[%clk 0:02:54.7]} 19. dxc5 {[%clk 0:02:12.5]} 19...
Bxc5 {[%clk 0:02:55.2]} 20. Bxc5 {[%clk 0:02:13.3]} 20... Rxc5 {[%clk
0:02:57.1]} 21. a3 {[%clk 0:01:16.1]} 21... Na6 {[%clk 0:02:54.5]} 22. Nd3
{[%clk 0:01:15.6]} 22... Rc7 {[%clk 0:02:52.8]} 23. a4 {[%clk 0:00:58.8]} 23...
Rac8 {[%clk 0:02:24.6]} 24. Nb5 {[%clk 0:00:59]} 24... Nd5 {[%clk 0:02:25.9]}
25. Qd2 {[%clk 0:00:57.3]} 25... Rc2 {[%clk 0:02:26.8]} 26. Nd6 {[%clk
0:00:43.6]} 26... Qb8 {[%clk 0:01:11.9]} 27. Qd1 {[%clk 0:00:09.5]} 0-1

[Event "*** Titled Tuesday Blitz"]
[Site "Chess.com"]
[Date "2019.09.03"]
[Round "6"]
[White "Mr_Penings"]
[Black "MFguimaraes"]
[Result "1-0"]
[WhiteElo "2508"]
[BlackElo "2292"]
[TimeControl "180+2"]
[EndTime "16:18:15 PDT"]
[Termination "Mr_Penings won by resignation"]

1. c4 {[%clk 0:02:24.7]} 1... c6 {[%clk 0:02:43.8]} 2. e4 {[%clk 0:02:25.3]}
2... d5 {[%clk 0:02:43.2]} 3. exd5 {[%clk 0:02:26.3]} 3... cxd5 {[%clk
0:02:44.1]} 4. cxd5 {[%clk 0:02:27.1]} 4... Nf6 {[%clk 0:02:44.9]} 5. Nc3 {[%clk
0:02:27.8]} 5... Nxd5 {[%clk 0:02:45.6]} 6. Nf3 {[%clk 0:02:28.6]} 6... g6
{[%clk 0:02:38]} 7. Bc4 {[%clk 0:02:24.7]} 7... Be6 {[%clk 0:02:25]} 8. Qb3
{[%clk 0:02:12.5]} 8... Nc7 {[%clk 0:02:22.5]} 9. Bxe6 {[%clk 0:02:10.3]} 9...
Nxe6 {[%clk 0:02:23.3]} 10. Qxb7 {[%clk 0:02:09.5]} 10... Nd7 {[%clk 0:02:24.3]}
11. O-O {[%clk 0:02:07]} 11... Bg7 {[%clk 0:02:25.4]} 12. d4 {[%clk 0:01:51.1]}
12... O-O {[%clk 0:02:25.8]} 13. d5 {[%clk 0:01:34.3]} 13... Nec5 {[%clk
0:02:26.6]} 14. Qb4 {[%clk 0:01:29.7]} 14... a5 {[%clk 0:02:23.8]} 15. Qc4
{[%clk 0:01:22.4]} 15... Rb8 {[%clk 0:02:22.7]} 16. Re1 {[%clk 0:01:12.9]} 16...
Rb4 {[%clk 0:02:19.2]} 17. Qe2 {[%clk 0:01:12.6]} 17... Re8 {[%clk 0:02:19.2]}
18. Bg5 {[%clk 0:01:12.6]} 18... Nf6 {[%clk 0:02:10.2]} 19. Rad1 {[%clk
0:01:00.9]} 19... h6 {[%clk 0:02:11.1]} 20. Bxf6 {[%clk 0:00:51.8]} 20... Bxf6
{[%clk 0:02:13]} 21. d6 {[%clk 0:00:53.1]} 21... Qb6 {[%clk 0:01:59.1]} 22. Nd5
{[%clk 0:00:49.3]} 22... Rxb2 {[%clk 0:01:42.1]} 23. Nxb6 {[%clk 0:00:48.9]}
23... Rxe2 {[%clk 0:01:42.2]} 24. Rxe2 {[%clk 0:00:50.8]} 24... e5 {[%clk
0:01:39.6]} 25. d7 {[%clk 0:00:47.5]} 25... Rd8 {[%clk 0:01:40.8]} 26. Rc2
{[%clk 0:00:46.8]} 26... Ne6 {[%clk 0:01:40.5]} 27. Rc8 {[%clk 0:00:46.5]} 27...
Kg7 {[%clk 0:01:42]} 28. Rxd8 {[%clk 0:00:45.8]} 28... Nxd8 {[%clk 0:01:43.9]}
29. Nd5 {[%clk 0:00:39.9]} 29... e4 {[%clk 0:01:41.2]} 30. Nd2 {[%clk
0:00:40.5]} 30... Be5 {[%clk 0:01:38.1]} 31. Nxe4 {[%clk 0:00:39.8]} 31... f5
{[%clk 0:01:39.3]} 32. Nc5 {[%clk 0:00:37.7]} 32... Kf7 {[%clk 0:01:40]} 33. Ne3
{[%clk 0:00:32.4]} 33... Ke7 {[%clk 0:01:36.6]} 34. Nc4 {[%clk 0:00:33.4]} 34...
Bc7 {[%clk 0:01:35.7]} 35. Re1+ {[%clk 0:00:34.1]} 35... Kf7 {[%clk 0:01:34.4]}
36. Re8 {[%clk 0:00:32.6]} 36... Nc6 {[%clk 0:01:34.1]} 37. Rc8 {[%clk
0:00:31.1]} 1-0

[Event "*** Titled Tuesday Blitz"]
[Site "Chess.com"]
[Date "2019.09.03"]
[Round "6"]
[White "pheonixking2000"]
[Black "platy3"]
[Result "0-1"]
[WhiteElo "2707"]
[BlackElo "2875"]
[TimeControl "180+2"]
[EndTime "16:18:18 PDT"]
[Termination "platy3 won by resignation"]

1. a3 {[%clk 0:03:01.9]} 1... b6 {[%clk 0:02:58.6]} 2. c4 {[%clk 0:03:02.5]}
2... Bb7 {[%clk 0:02:59.6]} 3. Nc3 {[%clk 0:03:04.2]} 3... Nf6 {[%clk
0:02:59.6]} 4. Nf3 {[%clk 0:03:03.5]} 4... g6 {[%clk 0:02:58.7]} 5. g3 {[%clk
0:02:53.6]} 5... Bg7 {[%clk 0:02:59.6]} 6. Bg2 {[%clk 0:02:55]} 6... O-O {[%clk
0:03:00.8]} 7. O-O {[%clk 0:02:56.7]} 7... d5 {[%clk 0:03:00.7]} 8. cxd5 {[%clk
0:02:57.2]} 8... Nxd5 {[%clk 0:03:02.6]} 9. d4 {[%clk 0:02:58.9]} 9... Nxc3
{[%clk 0:03:01.7]} 10. bxc3 {[%clk 0:02:59.8]} 10... c5 {[%clk 0:03:00.6]} 11.
Re1 {[%clk 0:02:46.8]} 11... cxd4 {[%clk 0:02:57.6]} 12. cxd4 {[%clk 0:02:48.7]}
12... Be4 {[%clk 0:02:54.5]} 13. Bb2 {[%clk 0:02:30.4]} 13... Nc6 {[%clk
0:02:54.8]} 14. Qa4 {[%clk 0:02:31.5]} 14... Qd5 {[%clk 0:02:50.5]} 15. Red1
{[%clk 0:02:17.3]} 15... Rac8 {[%clk 0:02:49.7]} 16. Ne1 {[%clk 0:02:16]} 16...
Bxg2 {[%clk 0:02:49.6]} 17. Nxg2 {[%clk 0:02:17.1]} 17... Na5 {[%clk 0:02:27.1]}
18. Nf4 {[%clk 0:02:12.9]} 18... Qe4 {[%clk 0:02:13.9]} 19. Rac1 {[%clk
0:02:00.1]} 19... g5 {[%clk 0:02:08.3]} 20. Rxc8 {[%clk 0:01:45.9]} 20... Rxc8
{[%clk 0:02:10.2]} 21. Qd7 {[%clk 0:01:33.4]} 21... Qc6 {[%clk 0:01:57.1]} 22.
Qg4 {[%clk 0:01:34.2]} 22... h6 {[%clk 0:01:46.2]} 23. h4 {[%clk 0:00:45.7]}
23... Qc2 {[%clk 0:01:40]} 24. hxg5 {[%clk 0:00:46]} 24... Qxd1+ {[%clk
0:01:32.5]} 25. Kg2 {[%clk 0:00:46.4]} 25... Rc1 {[%clk 0:01:21.2]} 26. Bxc1
{[%clk 0:00:31.2]} 26... Qxc1 {[%clk 0:01:23.1]} 27. gxh6 {[%clk 0:00:11.8]}
27... Qc6+ {[%clk 0:01:24.3]} 28. e4 {[%clk 0:00:12.4]} 28... Qxh6 {[%clk
0:01:24.3]} 29. Qc8+ {[%clk 0:00:13.3]} 29... Bf8 {[%clk 0:01:24.8]} 30. e5
{[%clk 0:00:11.3]} 30... Qc6+ {[%clk 0:01:24.9]} 0-1

[Event "*** Titled Tuesday Blitz"]
[Site "Chess.com"]
[Date "2019.09.03"]
[Round "6"]
[White "Firouzja2003"]
[Black "YQPerez"]
[Result "0-1"]
[WhiteElo "3030"]
[BlackElo "2784"]
[TimeControl "180+2"]
[EndTime "16:18:23 PDT"]
[Termination "YQPerez won by resignation"]

1. Nf3 {[%clk 0:03:01.9]} 1... d5 {[%clk 0:02:59.8]} 2. b3 {[%clk 0:03:00.8]}
2... Nf6 {[%clk 0:02:59.8]} 3. Bb2 {[%clk 0:03:01]} 3... Bf5 {[%clk 0:02:59.9]}
4. e3 {[%clk 0:02:59.3]} 4... e6 {[%clk 0:02:56.6]} 5. Be2 {[%clk 0:02:59.8]}
5... Be7 {[%clk 0:02:53.8]} 6. Nh4 {[%clk 0:02:59]} 6... Bg6 {[%clk 0:02:51.7]}
7. O-O {[%clk 0:02:58.9]} 7... c5 {[%clk 0:02:49.2]} 8. d3 {[%clk 0:02:44.7]}
8... Nc6 {[%clk 0:02:47]} 9. Nd2 {[%clk 0:02:45]} 9... d4 {[%clk 0:02:44.6]} 10.
e4 {[%clk 0:02:36.2]} 10... Nd7 {[%clk 0:02:43.2]} 11. Nxg6 {[%clk 0:02:16.1]}
11... hxg6 {[%clk 0:02:45.1]} 12. f4 {[%clk 0:02:17.6]} 12... g5 {[%clk
0:02:35.4]} 13. f5 {[%clk 0:02:13.8]} 13... Qc7 {[%clk 0:02:34.2]} 14. g3 {[%clk
0:02:15.1]} 14... O-O-O {[%clk 0:02:31]} 15. fxe6 {[%clk 0:02:15.8]} 15... fxe6
{[%clk 0:02:29.3]} 16. Bg4 {[%clk 0:02:15.5]} 16... Rh6 {[%clk 0:02:27.1]} 17.
Rf2 {[%clk 0:01:37.8]} 17... Kb8 {[%clk 0:02:22.4]} 18. a4 {[%clk 0:01:35.6]}
18... Rdh8 {[%clk 0:02:18.9]} 19. Nc4 {[%clk 0:01:34.2]} 19... Nde5 {[%clk
0:02:14.1]} 20. Bc1 {[%clk 0:01:29.8]} 20... Nxc4 {[%clk 0:01:50.5]} 21. bxc4
{[%clk 0:01:31.7]} 21... Bd6 {[%clk 0:01:50.6]} 22. Qf3 {[%clk 0:00:47.8]} 22...
Rf6 {[%clk 0:01:50.5]} 23. Qg2 {[%clk 0:00:46.3]} 23... Rxf2 {[%clk 0:01:52]}
24. Qxf2 {[%clk 0:00:46.4]} 24... Rf8 {[%clk 0:01:47.4]} 25. Qe2 {[%clk
0:00:20.9]} 25... Bxg3 {[%clk 0:01:45]} 26. hxg3 {[%clk 0:00:21.5]} 26... Qxg3+
{[%clk 0:01:43.9]} 27. Qg2 {[%clk 0:00:23.2]} 27... Qe1+ {[%clk 0:01:40.9]} 28.
Kh2 {[%clk 0:00:24.9]} 28... Ne5 {[%clk 0:01:31.4]} 29. Bxg5 {[%clk 0:00:08.9]}
29... Nxg4+ {[%clk 0:01:19.2]} 30. Qxg4 {[%clk 0:00:08.6]} 30... Qf2+ {[%clk
0:01:20.8]} 0-1

[Event "*** Titled Tuesday Blitz"]
[Site "Chess.com"]
[Date "2019.09.03"]
[Round "6"]
[White "iturrizaga"]
[Black "ckgchess"]
[Result "1-0"]
[WhiteElo "2941"]
[BlackElo "2742"]
[TimeControl "180+2"]
[EndTime "16:18:44 PDT"]
[Termination "iturrizaga won by resignation"]

1. c4 {[%clk 0:02:59.3]} 1... g6 {[%clk 0:02:58]} 2. g3 {[%clk 0:03:00.7]} 2...
Bg7 {[%clk 0:02:59.5]} 3. Bg2 {[%clk 0:03:02.6]} 3... e5 {[%clk 0:02:59.9]} 4.
Nc3 {[%clk 0:03:04]} 4... Nc6 {[%clk 0:03:01.4]} 5. e4 {[%clk 0:03:05.1]} 5...
Nge7 {[%clk 0:03:02.8]} 6. Nge2 {[%clk 0:03:06]} 6... d6 {[%clk 0:03:04.2]} 7.
O-O {[%clk 0:03:07.5]} 7... h5 {[%clk 0:03:05.5]} 8. d3 {[%clk 0:03:09.4]} 8...
h4 {[%clk 0:03:05.7]} 9. Bg5 {[%clk 0:03:08.3]} 9... f6 {[%clk 0:03:03.9]} 10.
Be3 {[%clk 0:03:09.1]} 10... Be6 {[%clk 0:03:01.2]} 11. Nd5 {[%clk 0:03:08.3]}
11... Qd7 {[%clk 0:02:48.2]} 12. f3 {[%clk 0:02:47.5]} 12... hxg3 {[%clk
0:02:32.7]} 13. hxg3 {[%clk 0:02:44.1]} 13... O-O-O {[%clk 0:02:26.9]} 14. Qa4
{[%clk 0:02:40.2]} 14... a6 {[%clk 0:02:15.6]} 15. b4 {[%clk 0:02:34.3]} 15...
Bh3 {[%clk 0:02:11.1]} 16. b5 {[%clk 0:02:29.6]} 16... Nd4 {[%clk 0:00:29.3]}
17. Nxe7+ {[%clk 0:02:18.2]} 17... Qxe7 {[%clk 0:00:31.2]} 18. Bxd4 {[%clk
0:02:13.4]} 18... exd4 {[%clk 0:00:28.3]} 19. bxa6 {[%clk 0:02:12.3]} 19... bxa6
{[%clk 0:00:13.6]} 20. Rab1 {[%clk 0:01:57.4]} 20... Bxg2 {[%clk 0:00:14]} 21.
Kxg2 {[%clk 0:01:38]} 21... Rh5 {[%clk 0:00:14.8]} 22. Qxa6+ {[%clk 0:01:33.2]}
22... Kd7 {[%clk 0:00:15.9]} 23. Qa4+ {[%clk 0:01:34.7]} 23... Ke6 {[%clk
0:00:16.4]} 24. Nf4+ {[%clk 0:01:36.3]} 24... Kf7 {[%clk 0:00:17.1]} 25. Nxh5
{[%clk 0:01:38.2]} 25... gxh5 {[%clk 0:00:19]} 26. Qc6 {[%clk 0:01:38.6]} 26...
h4 {[%clk 0:00:20.1]} 27. Qd5+ {[%clk 0:01:39.5]} 27... Kf8 {[%clk 0:00:21.7]}
28. Rh1 {[%clk 0:01:36.5]} 28... hxg3 {[%clk 0:00:21.6]} 29. Rh7 {[%clk
0:01:38.1]} 29... Qe8 {[%clk 0:00:17.4]} 30. Rbh1 {[%clk 0:01:36.5]} 30... Qa4
{[%clk 0:00:15]} 31. Rh8+ {[%clk 0:01:30.3]} 31... Ke7 {[%clk 0:00:09.5]} 32.
Rxd8 {[%clk 0:01:30.9]} 32... Qxa2+ {[%clk 0:00:10.2]} 33. Kxg3 {[%clk
0:01:31.6]} 33... Qd2 {[%clk 0:00:08.5]} 34. Rg8 {[%clk 0:01:23.4]} 1-0